[Event "Titled Tuesday Blitz December 27 Early 2022"]
[White "Santos Flores, Alberto"]
[Black "Makarian, Rudik"]
[WhiteFideId "3601234"]
[BlackFideId "44105681"]
[WhiteElo "2164"]
[BlackElo "2545"]
[Result "0-1"]
[Round "02"]
[TimeControl "180+2"]
[Date "2022.12.27"]
[WhiteClock "0:00:10"]
[BlackClock "0:00:20"]

1. e4 {[%clk 0:03:00]}  c5 {[%clk 0:02:59]} 2. Nf3 {[%clk 0:03:01]}  e6 {[%clk 0:03:00]} 3. g3 {[%clk 0:03:00]}  Nc6 {[%clk 0:03:00]} 4. Bg2 {[%clk 0:02:59]}  Nf6 {[%clk 0:03:01]} 5. Qe2 {[%clk 0:02:57]}  d5 {[%clk 0:03:00]} 6. exd5 {[%clk 0:02:56]}  Nxd5 {[%clk 0:03:01]} 7. O-O {[%clk 0:02:56]}  Be7 {[%clk 0:03:01]} 8. Rd1 {[%clk 0:02:55]}  Qb6 {[%clk 0:03:02]} 9. Nc3 {[%clk 0:02:48]}  O-O {[%clk 0:02:57]} 10. Nxd5 {[%clk 0:02:13]}  exd5 {[%clk 0:02:58]} 11. c3 {[%clk 0:02:10]}  Bf6 {[%clk 0:02:56]} 12. d4 {[%clk 0:02:06]}  cxd4 {[%clk 0:02:53]} 13. Nxd4 {[%clk 0:02:06]}  Nxd4 {[%clk 0:02:14]} 14. cxd4 {[%clk 0:02:06]}  Bxd4 {[%clk 0:02:04]} 15. Bxd5 {[%clk 0:02:05]}  Bf5 {[%clk 0:02:01]} 16. Be3 {[%clk 0:01:49]}  Bxe3 {[%clk 0:01:55]} 17. Qxe3 {[%clk 0:01:48]}  Qxe3 {[%clk 0:01:55]} 18. fxe3 {[%clk 0:01:49]}  Rab8 {[%clk 0:01:53]} 19. Rac1 {[%clk 0:01:47]}  Rfc8 {[%clk 0:01:47]} 20. Rxc8+ {[%clk 0:01:25]}  Rxc8 {[%clk 0:01:44]} 21. Bxb7 {[%clk 0:01:24]}  Rb8 {[%clk 0:01:45]} 22. Bd5 {[%clk 0:01:04]}  Rxb2 {[%clk 0:01:40]} 23. Bb3 {[%clk 0:01:04]}  Kf8 {[%clk 0:00:49]} 24. Rc1 {[%clk 0:00:58]}  Rb1 {[%clk 0:00:39]} 25. Rxb1 {[%clk 0:00:59]}  Bxb1 {[%clk 0:00:40]} 26. Kf2 {[%clk 0:00:58]}  Ke7 {[%clk 0:00:40]} 27. Kf3 {[%clk 0:00:56]}  f6 {[%clk 0:00:40]} 28. h4 {[%clk 0:00:54]}  Kd6 {[%clk 0:00:40]} 29. Kf4 {[%clk 0:00:54]}  Kc5 {[%clk 0:00:40]} 30. Bg8 {[%clk 0:00:52]}  Kb4 {[%clk 0:00:38]} 31. g4 {[%clk 0:00:50]}  h6 {[%clk 0:00:36]} 32. g5 {[%clk 0:00:48]}  hxg5+ {[%clk 0:00:36]} 33. hxg5 {[%clk 0:00:48]}  Ka3 {[%clk 0:00:31]} 34. gxf6 {[%clk 0:00:44]}  gxf6 {[%clk 0:00:32]} 35. e4 {[%clk 0:00:43]}  a5 {[%clk 0:00:31]} 36. Kf5 {[%clk 0:00:38]}  a4 {[%clk 0:00:31]} 37. Kxf6 {[%clk 0:00:34]}  Bxe4 {[%clk 0:00:28]} 38. Be6 {[%clk 0:00:19]}  Kb2 {[%clk 0:00:27]} 39. Ke5 {[%clk 0:00:17]}  Bb1 {[%clk 0:00:27]} 40. Kd4 {[%clk 0:00:16]}  a3 {[%clk 0:00:20]} 41. Bd5 {[%clk 0:00:10]}  Bxa2 {[%clk 0:00:20]} 42. Be4 {[%clk 0:00:10]}  Bb1 {[%clk 0:00:20]} 43. Bd5 {[%clk 0:00:10]}  Bc2 {[%clk 0:00:20]} 44. Ke3 {[%clk 0:00:10]}  Bb3 {[%clk 0:00:20]} 0-1


[Site "https://www.chess.com"]

[Event "Titled Tuesday Blitz December 27 Early 2022"]
[White "Sargissyan, Sargis"]
[Black "Rahman, Adel"]
[WhiteFideId "13303210"]
[BlackFideId "14204177"]
[WhiteElo "2234"]
[BlackElo "2273"]
[Result "1/2-1/2"]
[Round "02"]
[TimeControl "180+2"]
[Date "2022.12.27"]
[WhiteClock "0:00:14"]
[BlackClock "0:00:35"]

1. e4 {[%clk 0:03:00]}  e5 {[%clk 0:02:59]} 2. Nf3 {[%clk 0:03:01]}  Nf6 {[%clk 0:03:00]} 3. d4 {[%clk 0:03:00]}  Nxe4 {[%clk 0:03:00]} 4. Bd3 {[%clk 0:03:00]}  d5 {[%clk 0:02:59]} 5. Nxe5 {[%clk 0:03:00]}  Nd7 {[%clk 0:03:00]} 6. Nxd7 {[%clk 0:02:58]}  Bxd7 {[%clk 0:03:01]} 7. O-O {[%clk 0:02:59]}  Bd6 {[%clk 0:03:01]} 8. Nc3 {[%clk 0:02:59]}  Nxc3 {[%clk 0:03:00]} 9. bxc3 {[%clk 0:02:59]}  O-O {[%clk 0:03:00]} 10. Qh5 {[%clk 0:02:58]}  f5 {[%clk 0:03:00]} 11. Re1 {[%clk 0:02:48]}  Qf6 {[%clk 0:02:58]} 12. Bg5 {[%clk 0:02:46]}  Qf7 {[%clk 0:02:58]} 13. Qf3 {[%clk 0:02:45]}  Rfe8 {[%clk 0:02:54]} 14. Bf4 {[%clk 0:02:38]}  Re6 {[%clk 0:02:08]} 15. Bxd6 {[%clk 0:02:20]}  Rxd6 {[%clk 0:02:07]} 16. Re5 {[%clk 0:02:20]}  g6 {[%clk 0:02:03]} 17. Rae1 {[%clk 0:02:17]}  Re8 {[%clk 0:02:02]} 18. h4 {[%clk 0:02:05]}  Rxe5 {[%clk 0:01:47]} 19. Rxe5 {[%clk 0:02:00]}  Bc6 {[%clk 0:01:33]} 20. Qe2 {[%clk 0:01:43]}  Kf8 {[%clk 0:01:32]} 21. h5 {[%clk 0:01:43]}  Bd7 {[%clk 0:01:28]} 22. Qf3 {[%clk 0:01:35]}  c6 {[%clk 0:01:25]} 23. Qf4 {[%clk 0:01:31]}  Qf6 {[%clk 0:01:24]} 24. Qh6+ {[%clk 0:00:58]}  Kg8 {[%clk 0:01:18]} 25. hxg6 {[%clk 0:00:48]}  hxg6 {[%clk 0:01:19]} 26. Re3 {[%clk 0:00:42]}  Re6 {[%clk 0:01:19]} 27. Rg3 {[%clk 0:00:28]}  Be8 {[%clk 0:01:14]} 28. Kf1 {[%clk 0:00:26]}  Qe7 {[%clk 0:01:09]} 29. f3 {[%clk 0:00:21]}  Re1+ {[%clk 0:00:52]} 30. Kf2 {[%clk 0:00:21]}  Ra1 {[%clk 0:00:52]} 31. Rxg6+ {[%clk 0:00:17]}  Bxg6 {[%clk 0:00:51]} 32. Qxg6+ {[%clk 0:00:18]}  Kf8 {[%clk 0:00:50]} 33. Qxf5+ {[%clk 0:00:17]}  Ke8 {[%clk 0:00:48]} 34. Qc8+ {[%clk 0:00:17]}  Kf7 {[%clk 0:00:48]} 35. Qf5+ {[%clk 0:00:17]}  Kg7 {[%clk 0:00:47]} 36. Qg6+ {[%clk 0:00:15]}  Kf8 {[%clk 0:00:47]} 37. Qf5+ {[%clk 0:00:14]}  Ke8 {[%clk 0:00:40]} 38. Qc8+ {[%clk 0:00:14]}  Kf7 {[%clk 0:00:40]} 39. Qf5+ {[%clk 0:00:14]}  Kg8 {[%clk 0:00:38]} 40. Qg6+ {[%clk 0:00:14]}  Kf8 {[%clk 0:00:35]} 41. Qf5+ {[%clk 0:00:14]} 1/2-1/2


[Site "https://www.chess.com"]

[Event "Titled Tuesday Blitz December 27 Early 2022"]
[White "Shipov, Sergei"]
[Black "Danielyan, Vahe"]
[WhiteFideId "4113624"]
[BlackFideId "13304828"]
[WhiteElo "2541"]
[BlackElo "2346"]
[Result "1-0"]
[Round "02"]
[TimeControl "180+2"]
[Date "2022.12.27"]
[WhiteClock "0:01:37"]
[BlackClock "0:01:23"]

1. d4 {[%clk 0:03:00]}  Nf6 {[%clk 0:02:53]} 2. c4 {[%clk 0:03:00]}  g6 {[%clk 0:02:54]} 3. Nc3 {[%clk 0:03:01]}  Bg7 {[%clk 0:02:54]} 4. e4 {[%clk 0:03:01]}  d6 {[%clk 0:02:55]} 5. Be2 {[%clk 0:03:02]}  O-O {[%clk 0:02:55]} 6. Nf3 {[%clk 0:03:02]}  e5 {[%clk 0:02:54]} 7. Be3 {[%clk 0:03:03]}  Qe8 {[%clk 0:02:52]} 8. dxe5 {[%clk 0:03:00]}  Ng4 {[%clk 0:02:52]} 9. Bg5 {[%clk 0:03:00]}  Nxe5 {[%clk 0:02:49]} 10. O-O {[%clk 0:02:59]}  Be6 {[%clk 0:02:39]} 11. Nd5 {[%clk 0:02:58]}  f6 {[%clk 0:02:35]} 12. Nxc7 {[%clk 0:02:51]}  Qf7 {[%clk 0:02:35]} 13. Nxe6 {[%clk 0:02:51]}  Qxe6 {[%clk 0:02:36]} 14. Bf4 {[%clk 0:02:41]}  Kh8 {[%clk 0:02:33]} 15. Qd5 {[%clk 0:02:37]}  Qe7 {[%clk 0:02:33]} 16. Rad1 {[%clk 0:02:37]}  Nbc6 {[%clk 0:02:27]} 17. Qxd6 {[%clk 0:02:34]}  Qf7 {[%clk 0:02:27]} 18. Qd5 {[%clk 0:02:34]}  Qe7 {[%clk 0:02:28]} 19. Be3 {[%clk 0:02:23]}  Rfd8 {[%clk 0:02:22]} 20. Qc5 {[%clk 0:02:19]}  Qe6 {[%clk 0:02:18]} 21. Nd4 {[%clk 0:02:10]}  Nxd4 {[%clk 0:02:15]} 22. Rxd4 {[%clk 0:02:10]}  Rdc8 {[%clk 0:02:08]} 23. Qd5 {[%clk 0:02:09]}  Qe8 {[%clk 0:02:05]} 24. Qxb7 {[%clk 0:02:02]}  Rab8 {[%clk 0:02:05]} 25. Qxa7 {[%clk 0:02:01]}  Rxb2 {[%clk 0:02:05]} 26. Re1 {[%clk 0:02:00]}  Ra8 {[%clk 0:02:03]} 27. Qc7 {[%clk 0:01:58]}  h5 {[%clk 0:01:47]} 28. h3 {[%clk 0:01:57]}  Kh7 {[%clk 0:01:36]} 29. f4 {[%clk 0:01:46]}  Nc6 {[%clk 0:01:25]} 30. Rd7 {[%clk 0:01:42]}  Ra7 {[%clk 0:01:23]} 31. Rxg7+ {[%clk 0:01:41]}  Kh8 {[%clk 0:01:23]} 32. Bxa7 {[%clk 0:01:37]} 1-0


[Site "https://www.chess.com"]

[Event "Titled Tuesday Blitz December 27 Early 2022"]
[White "Slade, Theodore"]
[Black "Weetik, Vjacheslav"]
[WhiteFideId "426547"]
[BlackFideId "4153472"]
[WhiteElo "1995"]
[BlackElo "2423"]
[Result "1-0"]
[Round "02"]
[TimeControl "180+2"]
[Date "2022.12.27"]
[WhiteClock "0:00:08"]
[BlackClock "0:00:02"]

1. d4 {[%clk 0:03:00]}  Nf6 {[%clk 0:02:58]} 2. c4 {[%clk 0:03:00]}  g6 {[%clk 0:02:59]} 3. Nc3 {[%clk 0:03:00]}  Bg7 {[%clk 0:03:00]} 4. e4 {[%clk 0:03:01]}  d6 {[%clk 0:03:00]} 5. Nf3 {[%clk 0:03:01]}  O-O {[%clk 0:03:00]} 6. Be2 {[%clk 0:03:02]}  e5 {[%clk 0:03:01]} 7. Be3 {[%clk 0:03:03]}  Ng4 {[%clk 0:02:48]} 8. Bg5 {[%clk 0:03:03]}  f6 {[%clk 0:02:47]} 9. Bc1 {[%clk 0:03:04]}  Nc6 {[%clk 0:02:38]} 10. O-O {[%clk 0:03:04]}  f5 {[%clk 0:02:35]} 11. dxe5 {[%clk 0:03:04]}  dxe5 {[%clk 0:02:27]} 12. exf5 {[%clk 0:03:05]}  Bxf5 {[%clk 0:02:16]} 13. Qd5+ {[%clk 0:02:43]}  Kh8 {[%clk 0:02:11]} 14. Bg5 {[%clk 0:02:39]}  Qe8 {[%clk 0:01:54]} 15. Rae1 {[%clk 0:02:18]}  h6 {[%clk 0:01:44]} 16. Bh4 {[%clk 0:02:16]}  g5 {[%clk 0:01:07]} 17. Bg3 {[%clk 0:02:09]}  e4 {[%clk 0:01:05]} 18. Nd2 {[%clk 0:02:06]}  Rd8 {[%clk 0:01:03]} 19. Qb5 {[%clk 0:01:21]}  Rxd2 {[%clk 0:00:56]} 20. Bxg4 {[%clk 0:01:21]}  Bxg4 {[%clk 0:00:54]} 21. Rxe4 {[%clk 0:01:21]}  Qc8 {[%clk 0:00:45]} 22. h4 {[%clk 0:01:09]}  Nd4 {[%clk 0:00:35]} 23. Qc5 {[%clk 0:01:01]}  b6 {[%clk 0:00:24]} 24. Qe7 {[%clk 0:00:55]}  Nf5 {[%clk 0:00:20]} 25. Qxc7 {[%clk 0:00:52]}  Nxg3 {[%clk 0:00:18]} 26. Qxg3 {[%clk 0:00:47]}  Bf5 {[%clk 0:00:18]} 27. Re7 {[%clk 0:00:44]}  g4 {[%clk 0:00:11]} 28. Rc7 {[%clk 0:00:37]}  Qe6 {[%clk 0:00:10]} 29. Nd5 {[%clk 0:00:36]}  Rxb2 {[%clk 0:00:07]} 30. Re7 {[%clk 0:00:35]}  Qg6 {[%clk 0:00:06]} 31. Rxa7 {[%clk 0:00:34]}  Bd3 {[%clk 0:00:05]} 32. Nf4 {[%clk 0:00:33]}  Rxf4 {[%clk 0:00:05]} 33. Qxf4 {[%clk 0:00:33]}  Bxf1 {[%clk 0:00:05]} 34. h5 {[%clk 0:00:27]}  Qb1 {[%clk 0:00:03]} 35. Kh2 {[%clk 0:00:26]}  Qh7 {[%clk 0:00:01]} 36. Ra8+ {[%clk 0:00:25]}  Qg8 {[%clk 0:00:01]} 37. Rxg8+ {[%clk 0:00:25]}  Kxg8 {[%clk 0:00:02]} 38. Qxg4 {[%clk 0:00:21]}  Bd3 {[%clk 0:00:01]} 39. Qc8+ {[%clk 0:00:20]}  Kh7 {[%clk 0:00:02]} 40. Qd7 {[%clk 0:00:20]}  Bb1 {[%clk 0:00:01]} 41. a4 {[%clk 0:00:18]}  Re2 {[%clk 0:00:01]} 42. Qg4 {[%clk 0:00:17]}  Re5 {[%clk 0:00:01]} 43. g3 {[%clk 0:00:15]}  Bf5 {[%clk 0:00:01]} 44. Qd4 {[%clk 0:00:15]}  Rc5 {[%clk 0:00:02]} 45. Qf4 {[%clk 0:00:08]} 1-0


[Site "https://www.chess.com"]

[Event "Titled Tuesday Blitz December 27 Early 2022"]
[White "Sourath Biswas"]
[Black "Firouzja, Alireza"]
[WhiteFideId "35091484"]
[BlackFideId "12573981"]
[WhiteElo "2281"]
[BlackElo "2785"]
[Result "0-1"]
[Round "02"]
[TimeControl "180+2"]
[Date "2022.12.27"]
[WhiteClock "0:00:16"]
[BlackClock "0:02:19"]

1. d4 {[%clk 0:03:00]}  Nf6 {[%clk 0:02:59]} 2. Bf4 {[%clk 0:03:01]}  g6 {[%clk 0:03:00]} 3. Nc3 {[%clk 0:03:01]}  d5 {[%clk 0:02:59]} 4. e3 {[%clk 0:03:02]}  Bg7 {[%clk 0:03:00]} 5. h4 {[%clk 0:03:00]}  h6 {[%clk 0:03:00]} 6. Nf3 {[%clk 0:02:58]}  Bg4 {[%clk 0:03:00]} 7. Be2 {[%clk 0:02:56]}  Bxf3 {[%clk 0:03:00]} 8. Bxf3 {[%clk 0:02:56]}  c6 {[%clk 0:03:01]} 9. Qd3 {[%clk 0:02:47]}  Nbd7 {[%clk 0:03:01]} 10. O-O-O {[%clk 0:02:37]}  e6 {[%clk 0:03:01]} 11. g4 {[%clk 0:02:35]}  h5 {[%clk 0:02:54]} 12. g5 {[%clk 0:02:33]}  Ng8 {[%clk 0:02:54]} 13. e4 {[%clk 0:02:32]}  Ne7 {[%clk 0:02:54]} 14. Bd6 {[%clk 0:02:28]}  Nb6 {[%clk 0:02:49]} 15. Bc5 {[%clk 0:02:14]}  O-O {[%clk 0:02:44]} 16. e5 {[%clk 0:01:47]}  Re8 {[%clk 0:02:42]} 17. Bg2 {[%clk 0:01:28]}  Nd7 {[%clk 0:02:38]} 18. Bd6 {[%clk 0:01:05]}  Rc8 {[%clk 0:02:38]} 19. Na4 {[%clk 0:00:48]}  Nf5 {[%clk 0:02:37]} 20. Ba3 {[%clk 0:00:43]}  Qa5 {[%clk 0:02:37]} 21. Qb3 {[%clk 0:00:43]}  Bf8 {[%clk 0:02:30]} 22. Bxf8 {[%clk 0:00:42]}  Rxf8 {[%clk 0:02:30]} 23. Bh3 {[%clk 0:00:42]}  b5 {[%clk 0:02:28]} 24. Nc3 {[%clk 0:00:33]}  Ne7 {[%clk 0:02:28]} 25. f4 {[%clk 0:00:31]}  b4 {[%clk 0:02:25]} 26. Ne2 {[%clk 0:00:31]}  c5 {[%clk 0:02:26]} 27. f5 {[%clk 0:00:27]}  exf5 {[%clk 0:02:22]} 28. Nf4 {[%clk 0:00:22]}  c4 {[%clk 0:02:22]} 29. Qf3 {[%clk 0:00:22]}  Qxa2 {[%clk 0:02:20]} 30. Kd2 {[%clk 0:00:20]}  c3+ {[%clk 0:02:19]} 31. bxc3 {[%clk 0:00:20]}  Rxc3 {[%clk 0:02:19]} 32. Nd3 {[%clk 0:00:17]}  Qxc2+ {[%clk 0:02:19]} 33. Ke3 {[%clk 0:00:18]}  Nb6 {[%clk 0:02:19]} 34. Rd2 {[%clk 0:00:16]}  Nc4+ {[%clk 0:02:19]} 0-1


[Site "https://www.chess.com"]

[Event "Titled Tuesday Blitz December 27 Early 2022"]
[White "Sovetov, Oleksandr"]
[Black "Perez Ponsa, Federico"]
[WhiteFideId "34105786"]
[BlackFideId "117927"]
[WhiteElo "1976"]
[BlackElo "2532"]
[Result "0-1"]
[Round "02"]
[TimeControl "180+2"]
[Date "2022.12.27"]
[WhiteClock "0:00:50"]
[BlackClock "0:01:57"]

1. Nf3 {[%clk 0:02:56]}  Nf6 {[%clk 0:02:50]} 2. c4 {[%clk 0:02:57]}  g6 {[%clk 0:02:51]} 3. Nc3 {[%clk 0:02:56]}  Bg7 {[%clk 0:02:52]} 4. e4 {[%clk 0:02:57]}  d6 {[%clk 0:02:52]} 5. d4 {[%clk 0:02:57]}  O-O {[%clk 0:02:53]} 6. Be2 {[%clk 0:02:58]}  e5 {[%clk 0:02:54]} 7. d5 {[%clk 0:02:58]}  a5 {[%clk 0:02:54]} 8. Nd2 {[%clk 0:02:58]}  Na6 {[%clk 0:02:52]} 9. h4 {[%clk 0:02:56]}  Nc5 {[%clk 0:02:52]} 10. h5 {[%clk 0:02:54]}  h6 {[%clk 0:02:46]} 11. Qc2 {[%clk 0:02:40]}  Nh7 {[%clk 0:02:44]} 12. Nf1 {[%clk 0:02:36]}  Ng5 {[%clk 0:02:42]} 13. Ne3 {[%clk 0:02:18]}  Bd7 {[%clk 0:02:40]} 14. hxg6 {[%clk 0:02:09]}  fxg6 {[%clk 0:02:40]} 15. Bg4 {[%clk 0:02:10]}  Be8 {[%clk 0:02:36]} 16. f3 {[%clk 0:01:58]}  h5 {[%clk 0:02:34]} 17. Bh3 {[%clk 0:01:52]}  Bh6 {[%clk 0:02:33]} 18. Bd2 {[%clk 0:01:43]}  Nxh3 {[%clk 0:02:22]} 19. Rxh3 {[%clk 0:01:42]}  Bd7 {[%clk 0:02:23]} 20. Rh1 {[%clk 0:01:36]}  Bf4 {[%clk 0:02:22]} 21. O-O-O {[%clk 0:01:34]}  Qg5 {[%clk 0:02:23]} 22. g3 {[%clk 0:01:25]}  Bxe3 {[%clk 0:02:20]} 23. f4 {[%clk 0:01:10]}  Bxd2+ {[%clk 0:02:18]} 24. Qxd2 {[%clk 0:01:05]}  exf4 {[%clk 0:02:18]} 25. Rdg1 {[%clk 0:01:04]}  Bg4 {[%clk 0:02:15]} 26. Kb1 {[%clk 0:01:01]}  Rae8 {[%clk 0:02:16]} 27. gxf4 {[%clk 0:00:59]}  Qxf4 {[%clk 0:02:16]} 28. Qc2 {[%clk 0:00:55]}  Nxe4 {[%clk 0:02:15]} 29. Ne2 {[%clk 0:00:50]}  Qf2 {[%clk 0:01:57]} 0-1


[Site "https://www.chess.com"]

[Event "Titled Tuesday Blitz December 27 Early 2022"]
[White "Srebrnic, Marko"]
[Black "Tinmaz, Kerem"]
[WhiteFideId "14603616"]
[BlackFideId "44559151"]
[WhiteElo "2366"]
[BlackElo "2177"]
[Result "1-0"]
[Round "02"]
[TimeControl "180+2"]
[Date "2022.12.27"]
[WhiteClock "0:01:25"]
[BlackClock "0:01:23"]

1. e4 {[%clk 0:03:00]}  c5 {[%clk 0:03:00]} 2. Nf3 {[%clk 0:02:58]}  e6 {[%clk 0:03:00]} 3. d4 {[%clk 0:02:53]}  cxd4 {[%clk 0:03:01]} 4. Nxd4 {[%clk 0:02:52]}  a6 {[%clk 0:03:02]} 5. g3 {[%clk 0:02:50]}  Qc7 {[%clk 0:03:01]} 6. Bg2 {[%clk 0:02:49]}  Nc6 {[%clk 0:02:58]} 7. O-O {[%clk 0:02:37]}  Nf6 {[%clk 0:02:56]} 8. Re1 {[%clk 0:02:34]}  Nxd4 {[%clk 0:02:40]} 9. Qxd4 {[%clk 0:02:33]}  Bc5 {[%clk 0:02:39]} 10. Qd1 {[%clk 0:02:20]}  d6 {[%clk 0:02:33]} 11. Nc3 {[%clk 0:02:16]}  b5 {[%clk 0:02:31]} 12. Bg5 {[%clk 0:02:12]}  Bb7 {[%clk 0:02:28]} 13. Bxf6 {[%clk 0:02:10]}  gxf6 {[%clk 0:02:29]} 14. Qh5 {[%clk 0:02:09]}  Bd4 {[%clk 0:02:03]} 15. Rad1 {[%clk 0:02:03]}  Bxc3 {[%clk 0:01:54]} 16. bxc3 {[%clk 0:02:04]}  Qxc3 {[%clk 0:01:54]} 17. e5 {[%clk 0:01:54]}  Bxg2 {[%clk 0:01:49]} 18. exd6 {[%clk 0:01:52]}  Bf3 {[%clk 0:01:43]} 19. Rxe6+ {[%clk 0:01:51]}  Kf8 {[%clk 0:01:23]} 20. Qh6+ {[%clk 0:01:47]}  Kg8 {[%clk 0:01:23]} 21. d7 {[%clk 0:01:25]} 1-0


[Site "https://www.chess.com"]

[Event "Titled Tuesday Blitz December 27 Early 2022"]
[White "Stead, Kerry"]
[Black "Buscar, Michael"]
[WhiteFideId "3202577"]
[BlackFideId "2603616"]
[WhiteElo "1908"]
[BlackElo "2041"]
[Result "0-1"]
[Round "02"]
[TimeControl "180+2"]
[Date "2022.12.27"]
[WhiteClock "0:01:09"]
[BlackClock "0:01:53"]

1. d4 {[%clk 0:03:00]}  d5 {[%clk 0:02:58]} 2. c4 {[%clk 0:03:00]}  e6 {[%clk 0:02:56]} 3. Nc3 {[%clk 0:02:59]}  a6 {[%clk 0:02:56]} 4. g3 {[%clk 0:02:59]}  Nf6 {[%clk 0:02:53]} 5. Bg2 {[%clk 0:02:59]}  Be7 {[%clk 0:02:52]} 6. b3 {[%clk 0:02:55]}  O-O {[%clk 0:02:52]} 7. Bb2 {[%clk 0:02:48]}  c6 {[%clk 0:02:51]} 8. e3 {[%clk 0:02:48]}  Nbd7 {[%clk 0:02:49]} 9. Nge2 {[%clk 0:02:48]}  b5 {[%clk 0:02:46]} 10. c5 {[%clk 0:02:44]}  e5 {[%clk 0:02:47]} 11. b4 {[%clk 0:02:43]}  e4 {[%clk 0:02:46]} 12. h4 {[%clk 0:02:37]}  a5 {[%clk 0:02:46]} 13. a3 {[%clk 0:02:36]}  Ne8 {[%clk 0:02:40]} 14. Nf4 {[%clk 0:02:35]}  Nc7 {[%clk 0:02:31]} 15. Nce2 {[%clk 0:02:33]}  Ne6 {[%clk 0:02:30]} 16. Bc3 {[%clk 0:02:26]}  axb4 {[%clk 0:02:27]} 17. axb4 {[%clk 0:02:24]}  Bb7 {[%clk 0:02:26]} 18. O-O {[%clk 0:02:18]}  Qc7 {[%clk 0:02:24]} 19. Bh3 {[%clk 0:02:16]}  Rxa1 {[%clk 0:02:18]} 20. Bxa1 {[%clk 0:02:13]}  Nxf4 {[%clk 0:02:13]} 21. Nxf4 {[%clk 0:02:13]}  Ra8 {[%clk 0:02:14]} 22. Nh5 {[%clk 0:02:04]}  Nf8 {[%clk 0:02:05]} 23. Qg4 {[%clk 0:01:54]}  g6 {[%clk 0:02:06]} 24. Qf4 {[%clk 0:01:31]}  Qd8 {[%clk 0:01:58]} 25. Qe5 {[%clk 0:01:19]}  gxh5 {[%clk 0:01:56]} 26. Qxh5 {[%clk 0:01:18]}  Bc8 {[%clk 0:01:54]} 27. Bc3 {[%clk 0:01:09]}  Bxh3 {[%clk 0:01:53]} 0-1


[Site "https://www.chess.com"]